bitfinex-derivatives/quotes_ETHF0:USTF0_20240830
["timestamp","ask_amount","ask_price","bid_price","bid_amount"]
[1725021966212,3.60291,2530.5,2530.3,0.39514]
[1725021966415,0.39513,2530.4,2530.2,0.39515]
[1725021966712,0.39513,2530.4,2530.0,0.00593401]
[1725021966713,0.39518,2530.1,2530.0,0.00593401]
[1725021967317,1.6955,2530.2,2530.0,0.00593401]
[1725021967515,3.2078,2530.5,2530.0,0.00593401]
[1725021967717,3.2078,2530.5,2530.2,0.39516]
[1725021967718,0.39514,2530.4,2530.2,0.39516]
[1725021968119,0.39514,2530.4,2530.2,0.39515]
[1725021968318,3.2078,2530.5,2530.2,3.952]
[1725021968518,3.60293,2530.5,2530.3,0.39515]
[1725021968817,3.2078,2530.5,2530.4,0.39513]
[1725021969423,0.00593401,2530.6,2530.4,3.952]
[1725021969624,0.00593401,2530.6,2530.5,6.15191]
[1725021969920,0.98738,2531.6,2530.6,0.98772]
[1725021970125,0.39498,2531.4,2530.9,3.2078]
[1725021970314,0.39499,2531.3,2531.0,0.39503]
[1725021970509,0.39499,2531.3,2531.1,0.39502]
[1725021970713,0.39499,2531.4,2531.1,0.39502]
[1725021971619,1.87443401,2531.5,2531.1,0.39501]
[1725021971828,0.39498,2531.4,2531.1,0.39501]
[1725021972217,0.39498,2531.4,2531.0,0.39503]
[1725021972721,2.26940401,2531.5,2531.0,0.39503]
[1725021972910,2.26940401,2531.5,2530.9,3.2078]
[1725021972911,0.39498,2531.4,2531.1,0.39502]
[1725021973116,2.26939401,2531.5,2531.1,0.39502]
[1725021973424,0.39498,2531.4,2531.0,0.39503]
[1725021973924,0.39497,2531.4,2531.0,0.39503]
[1725021974120,0.39497,2531.4,2531.0,0.39502]
[1725021974919,2.26940401,2531.5,2531.1,0.39502]
[1725021975120,2.26940401,2531.5,2531.2,3.2078]
[1725021976027,1.87443401,2531.5,2531.2,3.2078]
[1725021976235,2.26940401,2531.5,2531.2,3.2078]
[1725021976426,0.39498,2531.4,2531.2,3.2078]
[1725021976625,2.26940401,2531.5,2531.2,3.2078]
[1725021976818,0.39498,2531.4,2531.2,3.2078]
[1725021977018,1.87443401,2531.5,2531.2,3.2078]
[1725021977019,0.39499,2531.3,2531.2,3.2078]
[1725021977922,1.87443401,2531.5,2531.2,3.6028]
[1725021978117,2.26939401,2531.5,2531.3,0.39498]
[1725021978324,0.00593401,2531.5,2531.4,0.39497]
[1725021978630,0.40089401,2531.5,2531.3,2.08238]
[1725021978818,0.00593401,2531.5,2531.3,2.08239]
[1725021979015,0.00593401,2531.5,2531.4,0.39497]
[1725021979731,0.00593401,2531.5,2531.4,4.34537]
[1725021980322,0.00593401,2531.5,2531.3,1.6874]
[1725021980720,0.00593401,2531.5,2531.3,2.08238]
[1725021980920,0.40089401,2531.5,2531.3,1.6874]
[1725021981430,0.39498,2531.4,2531.2,3.2078]
[1725021981624,0.00593401,2531.5,2531.3,0.39499]
[1725021981821,0.40090401,2531.5,2531.2,3.6028]
[1725021982027,1.74663401,2531.5,2531.2,3.6028]
[1725021982230,2.14159401,2531.5,2531.2,3.6028]
[1725021982528,1.74663401,2531.5,2531.2,3.2078]
[1725021982726,0.39507,2530.8,2530.7,3.2078]
[1725021982930,0.39511,2530.6,2530.4,3.2078]
[1725021983228,45.629,2531.1,2530.4,3.2078]
[1725021983435,0.39508,2530.8,2530.5,0.39511]
[1725021983741,4.14843267,2531.1,2530.7,3.2078]
[1725021983924,0.98744,2531.4,2530.8,0.39505]
[1725021984124,0.39505,2531.0,2530.7,7.01288]
[1725021984631,0.39501,2531.2,2530.9,0.39504]
[1725021985124,40.8,2531.4,2530.8,3.6784]
[1725021985327,0.39501,2531.2,2530.9,0.39504]
[1725021985723,0.395,2531.3,2530.9,0.39504]
[1725021985922,0.395,2531.3,2531.0,0.39503]
[1725021986123,0.39501,2531.2,2530.9,0.39504]
[1725021986328,4.25233279,2531.2,2530.5,4.107]
[1725021986536,0.39507,2530.8,2530.5,4.5021]
[1725021986736,0.9876,2531.0,2530.4,3.60292]
[1725021986737,0.39509,2530.7,2530.4,3.60292]
[1725021987033,0.39508,2530.8,2530.5,0.39511]
[1725021987733,0.39511,2530.5,2530.4,3.2078]
[1725021988130,0.39511,2530.6,2530.4,3.60293]
[1725021988335,0.39509,2530.7,2530.4,3.60293]
[1725021988536,0.39508,2530.8,2530.4,6.6178]
[1725021988828,1.8174,2530.9,2530.4,6.6178]
[1725021989025,1.8174,2530.9,2530.7,0.39507]
[1725021989228,1.8174,2530.9,2530.4,6.6178]
[1725021989624,0.39507,2530.8,2530.4,6.6178]
[1725021989829,1.8174,2530.9,2530.4,6.6178]
[1725021990132,0.39509,2530.7,2530.4,7.01292]
[1725021990322,0.39511,2530.5,2530.4,3.2078]
[1725021990525,1.7577,2530.6,2530.2,0.39516]
[1725021990736,0.39512,2530.5,2530.0,15.34803401]
[1725021990941,0.39512,2530.5,2530.3,0.39514]
[1725021991127,1.7577,2530.6,2530.2,3.41]
[1725021991323,2.15281,2530.6,2530.4,0.39512]
[1725021991828,2.15281,2530.6,2530.2,3.41]
[1725021991829,0.39507,2530.8,2530.6,0.39509]
[1725021992229,3.6903,2530.9,2530.5,0.3951]
[1725021992541,0.39509,2530.7,2530.5,0.3951]
[1725021993041,0.39508,2530.8,2530.6,0.3951]
[1725021994239,0.39512,2530.5,2530.3,3.60294]
[1725021994735,0.98773,2530.7,2530.3,3.2078]
[1725021994939,3.6903,2530.9,2530.3,3.2078]
[1725021994940,0.39513,2530.4,2530.3,3.2078]
[1725021995329,0.98775,2530.6,2530.3,3.2078]
[1725021995534,0.39513,2530.4,2530.3,3.2078]
[1725021995730,1.38296,2530.4,2530.3,3.2078]
[1725021995945,7.20016,2530.4,2530.3,3.2078]
[1725021996746,7.20016,2530.4,2530.0,0.00593401]
[1725021996747,1.38313,2530.1,2530.0,0.00593401]
[1725021996935,2.37108,2530.1,2530.0,0.00593401]
[1725021997139,0.39531,2529.3,2529.2,3.2078]
[1725021997336,0.98809,2529.8,2528.9,16.1424358]
[1725021997337,0.98822,2529.5,2529.0,0.39534]
[1725021997533,0.39532,2529.2,2529.0,0.39534]
[1725021997840,0.39532,2529.2,2529.1,3.2078]
[1725021998838,0.00593401,2529.4,2529.3,0.3953]
[1725022000241,0.00593401,2529.4,2529.3,4.3489]
[1725022000841,0.00593401,2529.4,2529.3,0.3953]
[1725022001038,0.00593401,2529.4,2529.3,4.3489]
[1725022001233,4.72,2530.0,2529.3,10.94186]
[1725022001439,0.39522,2529.9,2529.6,0.39525]
[1725022001945,6.5573,2530.0,2529.6,0.39525]
[1725022002150,0.39523,2529.8,2529.5,3.60306]
[1725022002648,0.39526,2529.6,2529.5,3.2078]
[1725022004242,4.34886,2529.6,2529.5,3.2078]
[1725022005334,0.39526,2529.6,2529.5,3.2078]
[1725022006450,5.33701,2529.6,2529.5,3.2078]
[1725022008140,0.39526,2529.6,2529.5,3.60307]
[1725022008540,0.39526,2529.6,2529.5,3.2078]
[1725022008752,0.39525,2529.7,2529.5,3.2078]
[1725022008946,0.39526,2529.6,2529.5,3.2078]
[1725022009754,4.34886,2529.6,2529.5,3.2078]
[1725022010352,4.34886,2529.6,2529.5,3.60307]
[1725022010551,4.34886,2529.6,2529.5,3.2078]
[1725022011247,4.34886,2529.6,2529.5,3.60307]
[1725022011550,0.39526,2529.6,2529.5,3.60307]
[1725022012550,0.39525,2529.7,2529.6,0.39524]
[1725022013055,0.39525,2529.7,2529.6,2.10674]
[1725022013254,0.39526,2529.6,2529.5,3.2078]
[1725022013451,1.38341,2529.6,2529.5,3.2078]
[1725022013843,0.39526,2529.6,2529.5,3.60307]
[1725022014243,5.33701,2529.6,2529.5,3.2078]
[1725022014754,0.39529,2529.4,2529.3,3.60309]
[1725022015347,1.38367,2529.1,2529.0,3.4787]
[1725022015955,0.39533,2529.1,2529.0,3.4787]
[1725022016260,0.39533,2529.1,2529.0,3.87405]
[1725022016747,0.39533,2529.1,2529.0,3.4787]
[1725022017550,0.39533,2529.1,2529.0,3.87405]
[1725022018051,0.98825,2529.4,2529.0,3.4787]
[1725022018258,0.39533,2529.2,2529.1,0.39533]
[1725022019749,0.39533,2529.1,2529.0,3.87404]
[1725022020048,0.39533,2529.1,2529.0,3.4787]
[1725022020257,1.38367,2529.1,2529.0,1.7115]
[1725022020572,1.38373,2529.0,2528.9,3.21373401]
[1725022020857,1.38373,2529.0,2528.9,0.00593401]
[1725022021045,0.39535,2529.0,2528.9,0.40129401]
[1725022021649,0.39535,2529.0,2528.9,0.00593401]
[1725022022053,5.33813,2529.0,2528.9,0.00593401]
[1725022022255,6.32651,2529.0,2528.9,0.00593401]
[1725022023253,5.33813,2529.0,2528.9,0.00593401]
[1725022023557,0.39535,2529.0,2528.9,0.00593401]
[1725022023772,5.33813,2529.0,2528.9,0.00593401]
[1725022023952,12.32651,2529.0,2528.9,0.00593401]
[1725022024152,0.98856,2528.6,2528.2,5.43646]
[1725022024357,0.98856,2528.6,2528.3,0.39546]
[1725022024556,0.39546,2528.3,2528.2,3.5623]
[1725022025057,0.98858,2528.5,2528.0,4.107]
[1725022025263,0.39549,2528.1,2528.0,4.11293401]
[1725022025456,0.39549,2528.1,2528.0,4.50844401]
[1725022025961,0.39549,2528.1,2528.0,4.11293401]
[1725022026560,7.04162,2528.1,2528.0,0.00593401]
[1725022026759,8.83722,2528.1,2528.0,0.00593401]
[1725022027465,0.39549,2528.1,2528.0,0.00593401]
[1725022027966,3.2078,2528.3,2528.0,0.40142401]
[1725022028163,0.39549,2528.1,2528.0,0.00593401]
[1725022028467,0.39548,2528.2,2528.0,0.40144401]
[1725022028662,0.39548,2528.2,2528.1,0.39549]
[1725022028860,0.39547,2528.3,2528.1,0.39549]
[1725022029463,0.39548,2528.2,2528.0,0.40143401]
[1725022029665,0.39547,2528.3,2528.1,0.39549]
[1725022029979,0.00593401,2528.5,2528.4,0.39544]
[1725022030180,0.00593401,2528.5,2528.4,3.60324]
[1725022030470,0.39537,2528.9,2528.7,0.39539]
[1725022030766,3.2078,2529.0,2528.5,1.6943]
[1725022031068,0.3954,2528.7,2528.5,2.08972]
[1725022031363,6.20810867,2528.9,2528.5,2.08972]
[1725022031570,0.39539,2528.8,2528.6,0.39541]
[1725022031764,0.39541,2528.6,2528.5,1.6943]
[1725022031971,0.39541,2528.7,2528.5,2.08972]
[1725022032280,6.20810867,2528.9,2528.5,1.6943]
[1725022032281,0.39541,2528.6,2528.5,1.6943]
[1725022032864,0.39543,2528.5,2528.4,3.2078]
[1725022033165,1.38401,2528.5,2528.4,3.2078]
[1725022033366,5.33921,2528.5,2528.4,3.2078]
[1725022033559,0.39549,2528.1,2528.0,3.21373401]
[1725022033955,2.78215,2528.4,2528.0,3.60924401]
[1725022033956,0.39549,2528.2,2528.0,3.60924401]
[1725022034362,0.39549,2528.1,2528.0,3.60924401]
[1725022034569,0.39549,2528.1,2528.0,3.21373401]
[1725022034762,0.39548,2528.2,2528.0,3.60924401]
[1725022035361,1.7935,2528.4,2528.0,3.21373401]
[1725022035556,2.18895,2528.4,2528.2,0.39547]
[1725022035760,0.39546,2528.3,2528.1,0.39548]
[1725022035963,2.18895,2528.4,2528.2,0.39547]
[1725022036362,0.39546,2528.3,2528.1,0.39548]
[1725022036568,6.8923,2528.8,2528.2,3.41]
[1725022036569,1.7058,2528.8,2528.2,3.41]
[1725022036864,1.7058,2528.8,2528.0,7.16893401]
[1725022036865,0.98854,2528.6,2528.0,3.21373401]
[1725022037074,0.98854,2528.6,2528.1,0.39548]
[1725022037075,0.39547,2528.3,2528.1,0.39548]
[1725022037255,1.8294,2528.5,2528.0,3.21373401]
[1725022037569,0.98861,2528.4,2528.0,3.21373401]
[1725022037869,0.39549,2528.1,2528.0,3.21373401]
[1725022038572,0.98861,2528.4,2528.0,3.60922401]
[1725022038766,0.39549,2528.2,2528.0,3.60922401]
[1725022038967,0.39549,2528.2,2528.0,3.21373401]
[1725022039271,0.39549,2528.1,2528.0,3.21373401]
[1725022039469,0.39549,2528.1,2528.0,0.00593401]
[1725022040372,1.8327,2528.2,2528.1,0.39549]
[1725022040574,1.8294,2528.5,2528.0,0.00593401]
[1725022040770,0.39545,2528.4,2528.2,0.39547]
[1725022040972,1.8294,2528.5,2528.0,0.00593401]
[1725022041173,0.39546,2528.3,2528.1,0.39548]
[1725022041375,0.39545,2528.4,2528.2,0.39547]
[1725022041571,1.8294,2528.5,2528.0,3.21373401]
[1725022041775,0.39546,2528.4,2528.1,0.39549]
[1725022041978,0.39544,2528.4,2528.2,0.39547]
[1725022042570,2.22484,2528.5,2528.3,0.39546]
[1725022042765,0.39542,2528.6,2528.4,0.39543]
[1725022043375,1.7043,2528.8,2528.3,3.2078]
[1725022043576,2.09969,2528.8,2528.6,0.39541]
[1725022043878,1.7043,2528.8,2528.4,3.6148]
[1725022044079,1.7043,2528.8,2528.6,0.3954]
[1725022044080,2.09968,2528.8,2528.6,0.3954]
[1725022044469,0.39539,2528.8,2528.4,3.6148]
[1725022044675,0.39539,2528.8,2528.6,0.39541]
[1725022045979,0.3954,2528.7,2528.5,0.39542]
[1725022046281,0.39539,2528.8,2528.4,3.6148]
[1725022046485,0.39539,2528.8,2528.5,0.39542]
[1725022046675,0.39539,2528.8,2528.6,0.39541]
[1725022047282,0.40130401,2528.9,2528.7,0.3954]
[1725022047686,0.40130401,2528.9,2528.6,0.3954]
[1725022047687,0.39538,2528.8,2528.6,0.3954]
[1725022048084,0.40131401,2528.9,2528.7,0.3954]
[1725022048381,0.00593401,2528.9,2528.8,0.39538]
[1725022048773,0.00593401,2528.9,2528.8,4.34978]
[1725022049275,4.55,2529.4,2529.3,0.3953]
[1725022049485,4.11935,2529.7,2529.5,0.39527]
[1725022049486,1.8586,2529.7,2529.5,0.39527]
[1725022049675,0.39527,2529.6,2529.4,0.39528]
[1725022049876,2.25385,2529.7,2529.3,1.8715]
[1725022050074,0.39526,2529.6,2529.4,2.15328]
[1725022050284,0.39526,2529.6,2529.4,1.758]
[1725022050676,1.8586,2529.7,2529.4,1.758]
[1725022050881,0.39527,2529.6,2529.4,1.758]
[1725022051087,0.39527,2529.6,2529.4,2.15328]
[1725022051977,0.39527,2529.6,2529.5,0.39527]
[1725022052172,0.39525,2529.7,2529.5,0.39527]
[1725022052581,0.40116,2529.8,2529.6,0.39525]
[1725022052790,0.39526,2529.6,2529.4,2.15328]
[1725022053289,0.39527,2529.5,2529.4,2.15328]
[1725022053472,0.39527,2529.5,2529.4,1.758]
[1725022053778,0.39527,2529.5,2529.2,3.21373401]
[1725022053779,1.38373,2529.0,2528.9,3.2078]
[1725022054187,1.38373,2529.0,2528.4,0.39543]
[1725022054188,0.39543,2528.5,2528.4,3.2078]
[1725022054483,0.98848,2528.8,2528.3,4.107]
[1725022054484,0.39544,2528.4,2528.3,4.107]
[1725022054680,2.73304,2528.6,2528.1,3.2078]
[1725022054880,0.98858,2528.5,2528.1,3.21373401]
[1725022055079,0.98858,2528.5,2528.1,0.00593401]
[1725022055080,0.39547,2528.2,2528.1,0.00593401]
[1725022059484,5.33936,2528.2,2528.1,0.00593401]
[1725022059786,11.57546016,2528.2,2528.1,0.00593401]
[1725022059989,0.39555,2527.7,2527.6,11.01]
[1725022060196,0.39557,2527.6,2527.4,4.946]
[1725022060379,0.39558,2527.6,2527.3,2.20031]
[1725022060685,2.69213,2527.9,2527.4,0.40043607]
[1725022060686,0.39558,2527.5,2527.4,0.40043607]
[1725022060877,0.39558,2527.6,2527.4,4.35723607]
[1725022061077,0.98873,2528.1,2527.4,6.6178]
[1725022061285,45.19868,2528.3,2527.5,0.4003635]
[1725022061488,45.19868,2528.3,2527.8,0.39553]
[1725022061684,45.19868,2528.3,2527.7,0.39554]
[1725022061883,0.39551,2528.0,2527.7,0.39554]
[1725022062083,44.21,2528.3,2527.5,0.40031928]
[1725022062292,0.39556,2527.7,2527.5,0.39558]
[1725022062590,0.98881,2527.9,2527.4,3.60338]
[1725022062787,0.39556,2527.7,2527.4,3.6034]
[1725022063180,1.7051,2527.8,2527.4,3.6034]
[1725022063181,0.39557,2527.6,2527.4,3.2078]
[1725022063498,0.39557,2527.6,2527.4,3.60823137]
[1725022063884,1.7051,2527.8,2527.4,4.00382137]
[1725022064086,0.39557,2527.6,2527.4,3.2078]
[1725022064788,0.39558,2527.5,2527.4,3.2078]
[1725022065394,1.38455,2527.5,2527.4,3.2078]
[1725022065787,5.34135,2527.5,2527.4,3.2078]
[1725022066691,1.38465,2527.3,2527.2,0.00593401]
[1725022066902,4.79465,2527.3,2527.2,0.00593401]
[1725022067193,12.94358343,2527.3,2527.2,0.00593401]
[1725022067395,18.94358343,2527.3,2527.2,0.00593401]
[1725022067988,19.93262343,2527.3,2527.2,0.00593401]
[1725022068191,0.98924,2526.8,2526.3,3.60357]
[1725022068391,4.576,2526.8,2526.0,4.8926]
[1725022068686,4.576,2526.8,2526.6,0.39572]
[1725022069092,4.576,2526.8,2526.3,3.2078]
[1725022069093,4.9717,2526.8,2526.5,0.39573]
[1725022069492,0.39571,2526.7,2526.4,0.40168401]
[1725022069894,4.9717,2526.8,2526.5,0.39573]
[1725022070193,4.576,2526.8,2526.4,0.00593401]
[1725022070398,0.39574,2526.5,2526.4,0.00593401]
[1725022070594,0.39574,2526.5,2525.9,3.2078]
[1725022070595,0.39581,2526.1,2525.9,3.2078]
[1725022071293,2.67842,2526.4,2525.9,3.2078]
[1725022071294,1.689,2526.4,2525.9,3.2078]
[1725022071496,0.3958,2526.2,2525.8,0.39584]
[1725022071795,5.1061,2526.3,2526.0,0.39582]
[1725022071796,2.09188,2526.3,2526.0,0.39582]
[1725022072002,1.6961,2526.3,2526.0,0.39582]
[1725022072201,1.6961,2526.3,2525.9,0.40176401]
[1725022072402,1.6961,2526.3,2525.9,0.00593401]
[1725022072595,4.8968,2526.4,2525.9,0.00593401]
[1725022072797,4.8968,2526.4,2525.9,0.40176401]
[1725022072798,0.39579,2526.2,2525.9,0.40176401]
[1725022073293,0.39581,2526.1,2525.9,0.00593401]
[1725022073495,0.39582,2526.0,2525.9,0.00593401]
[1725022073890,0.39582,2526.0,2525.9,3.96513401]
[1725022075099,0.39582,2526.0,2525.9,0.00593401]
[1725022076302,2.14372,2526.0,2525.9,0.00593401]
[1725022076899,3.13327,2526.0,2525.9,0.00593401]
[1725022078503,7.09247,2526.0,2525.9,0.00593401]
[1725022078809,0.39589,2525.6,2525.4,4.988]
[1725022079007,0.39587,2525.7,2525.4,5.38391]
[1725022079208,0.39588,2525.6,2525.4,5.38391]
[1725022079595,0.39588,2525.6,2525.4,9.34391]
[1725022079802,3.41,2525.8,2525.4,4.988]
[1725022080003,3.41,2525.6,2525.4,3.2078]
[1725022080211,0.3959,2525.5,2525.4,3.2078]
[1725022080407,0.39593,2525.3,2525.2,0.00396004]
[1725022081210,1.38576,2525.3,2525.2,0.00396004]
[1725022081615,0.39593,2525.3,2525.2,0.00396004]
[1725022081916,7.29702,2525.4,2525.2,0.00396004]
[1725022082218,3.2078,2525.5,2525.3,0.39593]
[1725022082511,0.39588,2525.6,2525.4,0.39591]
[1725022082917,0.39589,2525.6,2525.2,0.00396004]
[1725022083215,4.69593401,2525.7,2525.6,0.39588]
[1725022084111,4.69593401,2525.7,2525.6,5.34479]
[1725022084417,4.69593401,2525.7,2525.6,9.54458]
[1725022084710,4.69593401,2525.7,2525.6,6.57509]
[1725022084910,4.69593401,2525.7,2525.6,10.53429]
[1725022085511,6.5843,2526.4,2525.8,0.98963]
[1725022085512,3.3765,2526.4,2525.8,0.98963]
[1725022085720,0.39577,2526.3,2526.1,0.3958]
[1725022085907,3.77227,2526.4,2526.1,0.3958]
[1725022086108,3.77227,2526.4,2525.9,3.2078]
[1725022086109,3.3765,2526.4,2525.9,3.2078]
[1725022086403,0.00593401,2526.4,2526.3,3.60357]
[1725022086614,3.41593401,2526.4,2526.3,3.2078]
[1725022086807,3.81169401,2526.4,2526.3,3.2078]
[1725022087114,0.39581,2526.1,2526.0,3.2078]
[1725022087313,0.39583,2526.0,2525.9,3.2078]
[1725022087517,5.56898,2526.3,2525.9,3.60363]
[1725022087705,0.39579,2526.2,2525.9,3.2078]
[1725022087903,3.41,2526.3,2525.9,3.2078]
[1725022088219,3.41,2526.3,2526.1,0.3958]
[1725022088912,0.00593401,2526.4,2525.9,3.2078]
[1725022089109,0.00593401,2526.4,2526.0,1.93976529]
[1725022089309,0.39579,2526.2,2525.9,3.2078]
[1725022089514,0.39582,2526.0,2525.6,10.8246]
[1725022089712,9.61493375,2526.1,2525.7,0.39586]
[1725022089914,0.39582,2526.0,2525.7,0.39586]
[1725022090307,9.21912375,2526.1,2525.9,0.39582]
[1725022090607,5.0918,2526.1,2525.9,0.39582]
[1725022090911,5.4876,2526.1,2525.9,0.39582]
[1725022091117,2.0776,2526.1,2525.8,0.39584]
[1725022091315,1.6818,2526.1,2525.6,6.7176]
[1725022091514,1.6818,2526.1,2525.9,0.39583]
[1725022091706,5.1399,2526.3,2525.6,7.70729]
[1725022091905,0.00593401,2526.4,2525.9,3.2078]
[1725022092212,0.40169401,2526.4,2526.2,0.39577]
[1725022092415,0.40169401,2526.4,2525.9,3.2078]
[1725022092416,0.39579,2526.2,2525.9,3.2078]
[1725022092617,0.39579,2526.2,2525.9,0.39583]
[1725022092815,6.10457,2526.3,2525.6,6.7176]
[1725022093114,6.10457,2526.3,2525.8,0.39584]
[1725022093115,0.39582,2526.0,2525.8,0.39584]
[1725022093316,0.39581,2526.1,2525.6,6.7176]
[1725022093517,0.39584,2525.9,2525.7,0.39586]
[1725022093709,0.39586,2525.8,2525.6,7.11347]
[1725022094020,0.39583,2526.0,2525.8,0.39584]
[1725022094715,0.39581,2526.1,2525.6,6.7176]
[1725022094911,4.20314401,2526.4,2526.0,0.3958]
[1725022095110,4.20314401,2526.4,2525.7,4.107]
[1725022095310,0.39579,2526.2,2526.1,0.3958]
[1725022095510,0.39578,2526.3,2526.1,0.3958]
[1725022095712,0.39579,2526.2,2526.1,0.3958]
[1725022096010,4.20314401,2526.4,2526.0,0.39581]
[1725022096207,4.20314401,2526.4,2525.7,4.107]
[1725022096208,3.60949401,2526.4,2526.2,0.39578]
[1725022096412,3.60949401,2526.4,2526.3,0.39577]
[1725022096710,3.21373401,2526.4,2526.1,0.3958]
[1725022096922,0.39577,2526.3,2526.1,0.39579]
[1725022097419,3.60949401,2526.4,2525.9,4.19738]
[1725022097622,3.21373401,2526.4,2526.3,0.39577]
[1725022098519,0.40169401,2526.4,2526.2,2.22688]
[1725022098708,0.40169401,2526.4,2526.3,0.39577]
[1725022099314,0.00593401,2526.4,2526.3,0.39577]
[1725022100112,0.00593401,2526.4,2526.2,1.8311]
[1725022100113,0.39577,2526.3,2526.2,2.22688]
[1725022100513,3.41,2526.3,2525.9,3.2078]
[1725022100816,0.39582,2526.0,2525.9,3.2078]
[1725022101021,4.79537,2526.0,2525.9,3.2078]
[1725022101211,4.79537,2526.0,2525.4,3.2078]
[1725022101212,0.98959,2525.9,2525.4,3.2078]
[1725022101411,3.41,2525.5,2525.2,0.00396004]
[1725022101620,0.39593,2525.3,2525.2,0.00396004]
[1725022102319,1.38576,2525.3,2525.2,0.00396004]
[1725022102515,6.49216,2525.3,2525.2,0.00396004]
[1725022103409,2.09233,2525.3,2525.2,0.00396004]
[1725022104015,2.09233,2525.3,2525.2,0.39990004]
[1725022104320,2.09233,2525.3,2525.2,0.00396004]
[1725022106725,3.08216,2525.3,2525.2,0.00396004]
[1725022107128,6.49216,2525.3,2525.2,0.00396004]
[1725022110327,7.48199,2525.3,2525.2,0.00396004]
[1725022111924,5.50233,2525.3,2525.2,0.00396004]
[1725022112526,3.2078,2525.4,2525.3,0.39593]
[1725022112820,0.39592,2525.4,2525.3,0.39591]
[1725022113021,0.39593,2525.3,2525.2,1.78686004]
[1725022113222,0.39593,2525.3,2525.2,0.00396004]
[1725022113223,4.79576,2525.3,2525.2,0.00396004]
[1725022114518,5.78559,2525.3,2525.2,0.00396004]
[1725022114722,9.74559,2525.3,2525.2,0.00396004]
[1725022115325,15.74559,2525.3,2525.2,0.00396004]
[1725022115534,20.33755275,2525.3,2525.2,0.00396004]
[1725022116325,3.2078,2525.4,2525.2,0.00396004]
[1725022116529,0.39593,2525.3,2525.2,0.00396004]
[1725022116935,0.39593,2525.3,2525.2,0.39990004]
[1725022117130,3.2078,2525.4,2525.3,0.39593]
[1725022117334,3.2078,2525.4,2525.2,0.00396004]
[1725022117529,4.79576,2525.3,2525.2,0.00396004]
[1725022117725,13.88576287,2525.3,2525.2,0.00396004]
[1725022118532,19.88576287,2525.3,2525.2,0.00396004]
[1725022118837,9.92576287,2525.3,2525.2,0.00396004]
[1725022120732,15.92576287,2525.3,2525.2,0.00396004]
[1725022121032,0.39604,2524.6,2524.5,3.4868]
[1725022121827,0.39607,2524.4,2524.3,4.01080491]
[1725022122133,0.39607,2524.4,2524.3,3.21373401]
[1725022122840,4.79625,2524.4,2524.3,0.00593401]
[1725022124130,6.60485,2524.4,2524.3,0.00593401]
[1725022124738,3.80607,2524.4,2524.3,0.00593401]
[1725022124938,11.21973401,2524.8,2524.3,0.00593401]
[1725022125239,0.39607,2524.4,2524.3,0.00593401]
[1725022125435,3.80607,2524.4,2524.3,0.00593401]
[1725022125634,4.79625,2524.4,2524.3,0.00593401]
[1725022127032,3.80607,2524.4,2524.3,0.00593401]
[1725022127237,3.41,2524.6,2524.3,0.00593401]
[1725022127445,0.39606,2524.5,2524.3,0.40200401]
[1725022127631,0.39607,2524.5,2524.3,0.40200401]
[1725022128336,0.39605,2524.5,2524.3,0.40201401]
[1725022128641,0.39607,2524.4,2524.3,0.40201401]
[1725022128839,0.39607,2524.4,2524.3,0.00593401]
[1725022129239,4.79625,2524.4,2524.3,0.00593401]
[1725022129632,3.80607,2524.4,2524.3,0.00593401]
[1725022129942,3.41,2524.7,2524.4,0.39606]
[1725022130136,0.39604,2524.6,2524.3,0.00593401]
[1725022130446,0.39606,2524.5,2524.3,0.00593401]
[1725022130652,0.39607,2524.4,2524.3,0.00593401]
[1725022132450,4.79625,2524.4,2524.3,0.00593401]
[1725022132947,0.39607,2524.5,2524.3,0.00593401]
[1725022133137,0.39607,2524.4,2524.3,0.40201401]
[1725022133849,0.39607,2524.5,2524.4,0.39606]
[1725022134045,3.80605,2524.6,2524.5,0.39605]
[1725022134344,0.39605,2524.5,2524.4,2.12436]
[1725022134847,3.80605,2524.6,2524.5,0.39605]
[1725022135046,3.41,2524.6,2524.5,0.39605]
[1725022135443,3.80604,2524.6,2524.5,0.39605]
[1725022136246,3.41,2524.6,2524.5,0.39605]
[1725022136441,3.80604,2524.6,2524.5,0.39605]
[1725022136745,3.41,2524.6,2524.5,0.39605]
[1725022136947,4.60193401,2524.8,2524.5,5.7913]
[1725022137242,0.00593401,2524.8,2524.7,0.39602]
[1725022137636,0.00593401,2524.8,2524.7,4.35682]
[1725022137840,0.00593401,2524.8,2524.7,5.34688]
[1725022138148,0.00593401,2524.8,2524.7,11.34688]
[1725022138340,3.41,2525.4,2524.8,0.99002]
[1725022138545,3.41,2525.4,2525.3,0.39593]
[1725022139143,15.18209,2525.6,2525.3,0.39593]
[1725022139341,8.01293401,2525.6,2525.4,0.3959]
[1725022139550,8.01293401,2525.6,2525.1,4.9847]
[1725022139747,0.3959,2525.5,2525.3,0.39592]
[1725022140246,8.01293401,2525.6,2525.1,4.9847]
[1725022140639,8.01293401,2525.6,2525.2,0.39594]
[1725022140942,0.39592,2525.4,2525.2,0.39594]
[1725022141154,0.39591,2525.5,2525.2,0.39594]
[1725022141441,0.39591,2525.5,2525.3,0.39593]
[1725022141640,4.60293401,2525.6,2525.5,0.3959]
[1725022141842,4.99881401,2525.6,2525.4,0.3959]
[1725022142036,5.59264401,2525.6,2525.2,0.39594]
[1725022142254,0.39593,2525.3,2525.1,5.38065]
[1725022142444,0.39592,2525.4,2525.3,0.39593]
[1725022142640,0.39591,2525.5,2525.3,0.39593]
[1725022143441,0.39591,2525.5,2525.4,0.39591]
[1725022143643,4.99881401,2525.6,2525.4,4.3559]
[1725022143847,4.60293401,2525.6,2525.5,0.3959]
[1725022144141,0.00593401,2525.6,2525.5,0.3959]